Cogmind - Beta 15 @@@ ROGUE MODE // 2025.07.09 @ 18:42:25 Player: Rockstar Result: Destroyed by P-60 Hacker with Shock Rifle Performance ------------- Evolutions (3) 1500 Regions Visited (7) 1400 Robots Destroyed (16) 80 Value Destroyed (392) 392 Prototype IDs (0) 0 Alien Tech Used (0) 0 Bonus (0) 0 TOTAL SCORE: 3372 Bonus ------- None Cogmind --------- Core Integrity 0/700 Matter 78/300 Energy 99/100 System Corruption 18% Temperature Cool (0) Movement Rolling (100) Location -7/Factory Parts ------- > --- POWER (2) -------- (None) > --- PROPULSION (4) --- Compact Wheel Armored Huge Wheel > --- UTILITY (4) ------ (None) > --- WEAPON (3) ------- (None) > --- INVENTORY (5) ---- Compact Wheel Compact Wheel Transmission Jammer Flak Gun Flak Gun Peak State ------------ > --- POWER ------------ Light Ion Engine Antimatter Reactor > --- PROPULSION ------- Heavy Treads > --- UTILITY ---------- Damper Plating > --- WEAPON ----------- Beam Cannon Grenade Launcher Hammer > --- INVENTORY -------- Heat Sink ECM Suite Hardened Light Armor Plating [Rating: 47] Favorites ----------- Power Light Ion Engine Engine Light Ion Engine Reactor Antimatter Reactor Propulsion Light Treads Treads Light Treads Wheel Wheel Utility Signal Interpreter Device ECM Suite Storage Small Storage Unit Processor Signal Interpreter Protection Layered Light Armor Plating Weapon Hammer Energy Cannon Beam Cannon Ballistic Gun Light Assault Rifle Launcher Grenade Launcher Impact Weapon Hammer Build | -11 -10 -10 -10 -9 -7 -7 -7 ------- Run | Yrd Mat Min Sub Rec Fac Was Fac Slots Evolved 6 | . . . . . 6 . . Power 1 | . . . . . 1 . . Propulsion 2 | . . . . . 2 . . Utility 2 | . . . . . 2 . . Weapon 1 | . . . . . 1 . . Parts Attached 35 | 6 1 5 2 1 2 6 12 Power 4 | 1 . 1 . . . 2 . Engine 3 | 1 . 1 . . . 1 . Core . | . . . . . . . . Reactor 1 | . . . . . . 1 . Propulsion 8 | 2 . 2 . . . 1 3 Treads 3 | . . 2 . . . 1 . Leg . | . . . . . . . . Wheel 5 | 2 . . . . . . 3 Hover . | . . . . . . . . Flight . | . . . . . . . . Utility 15 | 1 1 1 1 . 1 2 8 Device 5 | . 1 . . . . 1 3 Storage 2 | 1 . . 1 . . . . Processor 1 | . . 1 . . . . . Hackware . | . . . . . . . . Protection 7 | . . . . . 1 1 5 Artifact . | . . . . . . . . Weapon 8 | 2 . 1 1 1 1 1 1 Energy Gun . | . . . . . . . . Energy Cannon 1 | . . . . . 1 . . Ballistic Gun 3 | 2 . . . . . . 1 Ballistic Cannon . | . . . . . . . . Launcher 2 | . . . 1 . . 1 . Special Weapon . | . . . . . . . . Impact Weapon 2 | . . 1 . 1 . . . Slashing Weapon . | . . . . . . . . Piercing Weapon . | . . . . . . . . Special Melee Weapon . | . . . . . . . . Unidentified Prototypes . | . . . . . . . . Parts Lost 19 | . . 4 . . 1 4 10 Power 3 | . . 1 . . . 1 1 Propulsion 4 | . . 2 . . . . 2 Utility 6 | . . . . . . 1 5 Weapon 6 | . . 1 . . 1 2 2 Highest Loss Streak 5 | . . 3 . . 1 3 5 To Critical Strikes . | . . . . . . . . Average Backups 6 | 4 7 7 6 8 8 4 2 Power 1 | . 1 1 1 1 1 . . Propulsion . | 2 3 1 . . 1 . . Utility 2 | . 1 1 3 4 3 3 . Weapon 2 | 1 1 2 2 2 3 . 1 Tool/Special . | . . . . . . . . Unused Backups 9 | . 2 1 . 1 . 1 4 Power . | . . . . . . . . Propulsion 5 | . 2 . . . . 1 2 Utility 1 | . . 1 . . . . . Weapon 3 | . . . . 1 . . 2 Tool/Special . | . . . . . . . . Average Slot Usage (%) 83 | . 94 94 98 100 56 48 45 Engine 10 | . 14 10 14 14 7 6 2 Treads 15 | . . 13 28 28 15 8 2 Wheel 7 | . 28 13 . . . . 8 Device 1 | . 8 . . . . . 7 Storage 10 | . 14 14 14 14 7 2 . Processor 9 | . . 14 14 14 7 2 . Protection 2 | . . . . . 3 6 11 Ballistic Gun 6 | . 28 15 . . . . 2 Launcher 4 | . . . 13 14 6 1 . Impact Weapon 9 | . . 11 14 14 7 6 3 Peak Build Rating 47 | 6 7 7 8 9 13 47 46 Average Rating 12 | 2 6 6 7 8 10 34 23 On Entrance 11 | . 6 7 6 8 9 12 46 Naked Turns 38 | . . . . . . . 38 Heaviest Build 69 | 12 14 13 18 19 37 69 69 Greatest Support 70 | 20 20 40 40 40 40 70 70 Greatest Overweight (x) 8 | . . 2 . . . 4 8 Average Overweight (x) . | . . . . . . . . Largest Inventory Capacity 10 | 8 8 8 10 10 10 10 5 Average Capacity 7 | 7 8 8 8 10 10 6 5 Most Carried 10 | 8 8 8 8 10 10 7 5 Average Carried 6 | 4 7 7 7 9 8 4 2 Final Capacity 10 | 8 8 8 10 10 10 5 5 Final Carried 10 | 6 8 6 8 10 7 3 5 Class Distribution -------------------- 100% | Mutant Dominant Class ---------------- Mutant | -10/Materials Mutant | -10/Mines Mutant | -10/Subcaves Mutant | -9/Recycling Mutant | -7/Factory Mutant | -7/Waste Mutant | -7/Factory Resources | -11 -10 -10 -10 -9 -7 -7 -7 ----------- Run | Yrd Mat Min Sub Rec Fac Was Fac Matter Collected 554 | 187 . 118 80 . . 150 19 Remotely . | . . . . . . . . Salvage Created 582 | . . 187 78 . . 298 19 Parts 21 | . . 14 3 . . 4 . Haulers Intercepted . | . . . . . . . . Recyclers Shooed . | . . . . . . . . Parts Field Recycled . | . . . . . . . . Retrieved Matter . | . . . . . . . . Parts Self-Destructed 8 | . . . 8 . . . . Prevented . | . . . . . . . . Kills | -11 -10 -10 -10 -9 -7 -7 -7 ------- Run | Yrd Mat Min Sub Rec Fac Was Fac Combat Hostiles Destroyed 14 | . . 9 3 . . 1 1 Melee 9 | . . 8 . . . . 1 AOE 4 | . . . 3 . . 1 . Classes Destroyed 5 | . . 3 1 . . 1 . Tunneler 2 | . . 2 . . . . . Swarmer 8 | . . 7 . . . . 1 Grunt 2 | . . 2 . . . . . Compactor 1 | . . . . . . 1 . Subdweller 3 | . . . 3 . . . . Best Kill Streak 3 | . . 3 2 . . 1 1 Combat Bots Only 3 | . . 3 2 . . 1 1 Max Kills in Single Turn 1 | . . 1 1 . . 1 1 Gunslinging . | . . . . . . . . Exploded 1 | . . . 1 . . 1 . Melee 1 | . . 1 . . . . 1 Uniques/NPCs Destroyed . | . . . . . . . . Combat | -11 -10 -10 -10 -9 -7 -7 -7 -------- Run | Yrd Mat Min Sub Rec Fac Was Fac Hostile Shots Fired 453 | . 2 73 25 . 21 9 323 Missed 156 | . 1 19 15 . 4 . 117 Hits 297 | . 1 54 10 . 17 9 206 Melee 9 | . . . . . . 9 . Projectile 288 | . 1 54 10 . 17 . 206 AOE 2 | . . . . . . . 2 Critical Strikes 15 | . . . 1 . 1 7 6 Part Disruptions 2 | . . . . . . . 2 Damage Taken 4012 | . 18 509 87 . 254 525 2619 Core 863 | . . 117 45 . . 120 581 Absorbed by Shields 32 | . . . . . . . 32 Core Remaining (%) 67 | 100 . . . 35 . . . Volleys Fired 37 | . . . 6 . 13 17 1 Largest 2 | . . . 1 . 1 2 1 Hottest 90 | . . . 30 . 60 90 60 Shots Fired 42 | . . . 6 . 13 21 2 Gun 1 | . . . . . . . 1 Cannon 21 | . . . . . 4 16 1 Launcher 20 | . . . 6 . 9 5 . Special . | . . . . . . . . Kinetic 1 | . . . . . . . 1 Thermal 21 | . . . . . 4 16 1 Explosive 20 | . . . 6 . 9 5 . Electromagnetic . | . . . . . . . . Robot Hit Streak 9 | . . . 5 . 2 9 . Robot Miss Streak 4 | . . . 1 . 2 3 4 Penetration Max . | . . . . . . . . Secondary Targets . | . . . . . . . . Shots Hit Robots 62 | . . 23 5 . 7 18 9 Core Hits 18 | . . 3 7 . 6 2 . Critical Kills 2 | . . 2 . . . . . Critical Parts Destroyed 7 | . . 5 . . . 1 1 Critical Strikes 11 | . . 7 . . . 1 3 Smash 11 | . . 7 . . . 1 3 Melee Attacks 51 | . . 33 . . . 4 14 Impact 51 | . . 33 . . . 4 14 Slashing . | . . . . . . . . Piercing . | . . . . . . . . Sneak Attacks 2 | . . 2 . . . . . Combat Hostiles . | . . . . . . . . Follow-up Attacks . | . . . . . . . . Damage Inflicted 1861 | . . 606 201 . 207 648 199 Guns . | . . . . . . . . Cannons 290 | . . . . . 64 226 . Explosions 698 | . . . 201 . 143 354 . Melee 870 | . . 606 . . . 68 196 Ramming 3 | . . . . . . . 3 Kinetic . | . . . . . . . . Thermal 290 | . . . . . 64 226 . Explosive 698 | . . . 201 . 143 354 . Electromagnetic . | . . . . . . . . Impact 870 | . . 606 . . . 68 196 Slashing . | . . . . . . . . Piercing . | . . . . . . . . Highest Corruption 18 | . . . . . 2 12 18 Average Corruption 12 | . . . . . 1 11 13 Corruption Purged . | . . . . . . . . Corruption Blocked . | . . . . . . . . Effects 27 | . . . . . . 6 21 Message Errors 6 | . . . . . . 1 5 Matter Fused 9 | . . . . . . 2 7 Heat Flow Errors 2 | . . . . . . 1 1 Energy Discharges 3 | . . . . . . 1 2 Data Loss (minor) 2 | . . . . . . 1 1 Data Loss (major) 1 | . . . . . . . 1 Misfires 1 | . . . . . . . 1 Alerts 1 | . . . . . . . 1 Misdirections 2 | . . . . . . . 2 Overload Shots . | . . . . . . . . Overflow Damage 273 | . . 206 . . 12 26 29 Projectiles 12 | . . . . . 12 . . Explosions 3 | . . . . . . 3 . Melee 258 | . . 206 . . . 23 29 Knockbacks 4 | . . 4 . . . . . Impact 4 | . . 4 . . . . . Kinetic . | . . . . . . . . Secondary . | . . . . . . . . Self-Inflicted Damage 98 | . . . . . . 97 1 Shots 4 | . . . . . . 4 . Rammed 1 | . . . . . . . 1 Targets Rammed 1 | . . . . . . . 1 Kicked . | . . . . . . . . Crushed . | . . . . . . . . Highest Temperature 322 | . . . . . 8 322 145 Average Temperature 130 | . . . . . 4 147 55 Received Heat Transfer 531 | . 9 93 36 . . . 393 Siege Activations . | . . . . . . . . Martial Activations . | . . . . . . . . Shielding Activations . | . . . . . . . . Robots Disrupted . | . . . . . . . . Combat Hostiles . | . . . . . . . . Robots Corrupted 2 | . . 2 . . . . . Combat Hostiles 1 | . . 1 . . . . . Parts Fried 7 | . . 7 . . . . . Impact Corruptions 16 | . . 13 . . . 1 2 Robots Melted . | . . . . . . . . Combat Hostiles . | . . . . . . . . Parts Melted . | . . . . . . . . Heat Transferred 592 | . . . . . 111 481 . Parts Sabotaged . | . . . . . . . . Parts Stolen . | . . . . . . . . Parts Stripped . | . . . . . . . . Power Chain Reactions . | . . . . . . . . Alert | -11 -10 -10 -10 -9 -7 -7 -7 ------- Run | Yrd Mat Min Sub Rec Fac Was Fac Maximum Alert Level . | . . . . . . . . Low Security (%) 100 | 100 100 100 . 100 100 100 100 Level 1 . | . . . . . . . . Level 2 . | . . . . . . . . Level 3 . | . . . . . . . . Level 4 . | . . . . . . . . Level 5 . | . . . . . . . . High Security . | . . . . . . . . Max Security . | . . . . . . . . Peak Influence 77 | . 8 77 . . 72 21 60 Initial 50 | . . . . . 50 21 . Average 13 | . . 22 . . 43 3 15 Influence Increases 664 | . 8 300 30 . 112 14 200 Destroy 0b10 Robot/C 200 | . . 180 . . . . 20 Destroy 0b10 Robot/NC 10 | . . 10 . . . . . Destroy Leader 40 | . . 40 . . . . . Trap Triggered on 0b10 10 | . . 10 . . . . . Successful Hack 8 | . 8 . . . . . . Disable Machine 60 | . . . . . 60 . . Destroy Structure 16 | . . . . . 2 14 . Advance Influence 50 | . . . . . 50 . . Partial Spotted 15 | . . . . . . . 15 Lose Combat Pursuer 255 | . . 60 30 . . . 165 Influence Decreases 643 | . 8 237 93 . 50 76 179 Entered New Map 75 | . . . 34 . . 41 . Time Decay 475 | . 8 217 59 . 40 22 129 Lost Part 82 | . . 20 . . 10 2 50 Lost Ally 11 | . . . . . . 11 . Squads Dispatched 3 | . . . . . 2 . 1 Investigation 1 | . . . . . . . 1 Extermination . | . . . . . . . . Reinforcement 1 | . . . . . 1 . . Assault . | . . . . . . . . Garrison 1 | . . . . . 1 . . Intercept . | . . . . . . . . Searches Triggered . | . . . . . . . . Construction Impeded 1 | . . . . . 1 . . Haulers Reinforced . | . . . . . . . . Active Scanning Responses . | . . . . . . . . Cargo Convoy Interrupts . | . . . . . . . . Stealth | -11 -10 -10 -10 -9 -7 -7 -7 --------- Run | Yrd Mat Min Sub Rec Fac Was Fac Distress Signals . | . . . . . . . . Communications Jammed . | . . . . . . . . Distress Signals . | . . . . . . . . Times Spotted 55 | . 3 13 9 . 2 5 23 Peak Tracking Total 7 | . 4 4 6 . 1 4 7 Tactical Retreats 13 | . 1 3 1 . . 1 7 Traps | -11 -10 -10 -10 -9 -7 -7 -7 ------- Run | Yrd Mat Min Sub Rec Fac Was Fac Traps Triggered 5 | . . . . . 1 . 4 Indirectly . | . . . . . . . . Trap Hack Attempts . | . . . . . . . . Triggered . | . . . . . . . . Disarmed . | . . . . . . . . Reprogrammed . | . . . . . . . . Reused 1 | . . 1 . . . . . Traps Extracted . | . . . . . . . . Installed 1 | . . 1 . . . . . Triggered 1 | . . 1 . . . . . Most Traps Carried 1 | . . 1 . . . . . Machines | -11 -10 -10 -10 -9 -7 -7 -7 ---------- Run | Yrd Mat Min Sub Rec Fac Was Fac Machines Disabled 5 | . . . 1 . 4 . . Max in Single Turn 1 | . . . 1 . 1 . . Machines Repaired . | . . . . . . . . Machines Dismantled . | . . . . . . . . Machines Sabotaged . | . . . . . . . . Overloaded Fab Kills . | . . . . . . . . Hacking | -11 -10 -10 -10 -9 -7 -7 -7 --------- Run | Yrd Mat Min Sub Rec Fac Was Fac Machines Accessed 13 | . 3 2 . 6 . . 2 Terminals 9 | . 3 2 . 3 . . 1 Fabricators . | . . . . . . . . Repair Stations . | . . . . . . . . Recycling Units 4 | . . . . 3 . . 1 Scanalyzers . | . . . . . . . . Garrison Access . | . . . . . . . . Total Hacks 23 | . 6 3 . 10 . . 4 Successful 9 | . 2 1 . 5 . . 1 Failed 14 | . 4 2 . 5 . . 3 Catastrophic 8 | . . 2 . 4 . . 2 Database Lockouts . | . . . . . . . . Manual 17 | . 6 3 . 6 . . 2 Terminals 17 | . 6 3 . 6 . . 2 Fabricators . | . . . . . . . . Repair Stations . | . . . . . . . . Recycling Units 6 | . . . . 4 . . 2 Scanalyzers . | . . . . . . . . Garrison Access . | . . . . . . . . Terminal Hacks 2 | . 2 . . . . . . Branch Access Points 1 | . 1 . . . . . . Coupling Status 1 | . 1 . . . . . . Fabricator Hacks . | . . . . . . . . Repair Station Hacks . | . . . . . . . . Recycling Unit Hacks 5 | . . . . 4 . . 1 Report Inventory 3 | . . . . 3 . . . Retrieve Components 2 | . . . . 1 . . 1 Scanalyzer . | . . . . . . . . Garrison Access Hacks . | . . . . . . . . Unauthorized Hacks 2 | . . 1 . 1 . . . Terminals 2 | . . 1 . 1 . . . Track 2 | . . 1 . 1 . . . Fabricators . | . . . . . . . . Repair Stations . | . . . . . . . . Recycling Units . | . . . . . . . . Scanalyzers . | . . . . . . . . Garrison Access . | . . . . . . . . Data Cores Recovered . | . . . . . . . . Used . | . . . . . . . . Hacking Detections 12 | . 3 2 . 5 . . 2 Full Trace Events 2 | . . . . 1 . . 1 Feedback Events . | . . . . . . . . Feedback Blocked . | . . . . . . . . Robot Schematics Acquired . | . . . . . . . . Robots Built . | . . . . . . . . Authchips . | . . . . . . . . Time . | . . . . . . . . Total Robot Build Rating . | . . . . . . . . Part Schematics Acquired . | . . . . . . . . Parts Built . | . . . . . . . . Authchips . | . . . . . . . . Time . | . . . . . . . . Total Part Build Rating . | . . . . . . . . Parts Repaired . | . . . . . . . . Time . | . . . . . . . . Parts Recycled . | . . . . . . . . Recycled Matter . | . . . . . . . . Retrieved Matter . | . . . . . . . . Retrieved Components 1 | . . . . 1 . . . Parts Scanalyzed . | . . . . . . . . Part Schematics Acquired . | . . . . . . . . Parts Damaged . | . . . . . . . . Bothacking | -11 -10 -10 -10 -9 -7 -7 -7 ------------ Run | Yrd Mat Min Sub Rec Fac Was Fac Used RIF Installer . | . . . . . . . . Robots Hacked . | . . . . . . . . Non-combat . | . . . . . . . . Combat . | . . . . . . . . Robot Hacks Applied . | . . . . . . . . Relay Couplers Released . | . . . . . . . . Fabnet Peak Effective % . | . . . . . . . . Robots Rewired . | . . . . . . . . Allies Hacked . | . . . . . . . . Hacks Repelled . | . . . . . . . . Allies | -11 -10 -10 -10 -9 -7 -7 -7 -------- Run | Yrd Mat Min Sub Rec Fac Was Fac Total Allies 1 | . . . . . . 1 . Largest Group 1 | . . . . . . 1 . Highest-Rated Group 31 | . . . . . . 31 . Highest-Rated Ally 31 | . . . . . . 31 . Total Orders . | . . . . . . . . Ally Attacks 14 | . . . . . . 14 . Total Damage 229 | . . . . . . 229 . Kills . | . . . . . . . . Allies Corrupted . | . . . . . . . . Allies Melted . | . . . . . . . . Intel | -11 -10 -10 -10 -9 -7 -7 -7 ------- Run | Yrd Mat Min Sub Rec Fac Was Fac Active Infowar (turns) 270 | . 86 . . . . . 184 Sensors 183 | . . . . . . . 183 Jamming 1 | . . . . . . . 1 ECM 267 | . 86 . . . . . 181 Robot Analysis Total . | . . . . . . . . Derelict Logs Recovered 2 | . . 1 1 . . . . Drone Launches . | . . . . . . . . Drone Recoveries . | . . . . . . . . Exploration | -11 -10 -10 -10 -9 -7 -7 -7 ------------- Run | Yrd Mat Min Sub Rec Fac Was Fac Turns Passed 2796 | 46 121 897 420 533 92 203 484 Spaces Moved 1930 | 38 143 664 253 330 41 89 372 Core 132 | 1 . 1 . . . 1 129 Treads 1023 | . . 240 253 330 41 88 71 Legs . | . . . . . . . . Wheels 775 | 37 143 423 . . . . 172 Hover . | . . . . . . . . Flight . | . . . . . . . . Fastest Speed 50 | 50 80 80 160 160 160 160 50 Average Speed 123 | 79 80 109 160 160 160 161 101 Slowest Speed 450 | 80 80 160 160 160 160 250 450 Overloaded Moves . | . . . . . . . . Propulsion Burnouts . | . . . . . . . . Robots Hopped . | . . . . . . . . Potential Cave-ins . | . . . . . . . . Cave-ins Triggered . | . . . . . . . . Exploration Rate (%) 38 | 3 26 96 21 72 2 74 15 Regions Visited 7 Branch Regions 3 Pre-discovered Areas 2 | . . 2 . . . . . Known Exits Taken 4 | . 1 1 1 1 . . . Unknown Exits Taken 1 | 1 . . . . . . . Scrap Searched 1 | . . 1 . . . . . Spaces Dug . | . . . . . . . . Terrain Destroyed 57 | . . . 37 . 2 18 . Melee . | . . . . . . . . Projectile . | . . . . . . . . AOE 57 | . . . 37 . 2 18 . Terrain Rammed . | . . . . . . . . Walls Destroyed . | . . . . . . . . Machines Disabled . | . . . . . . . . Actions | -11 -10 -10 -10 -9 -7 -7 -7 --------- Run | Yrd Mat Min Sub Rec Fac Was Fac Total 2206 | 51 149 780 262 336 56 120 452 Wait 103 | . . 71 1 . . . 31 Move 1924 | 37 142 663 252 329 41 88 372 Hop . | . . . . . . . . Pick Up 27 | 8 4 4 1 3 . . 7 Fast Attach 18 | 4 1 . . 1 . 5 7 Attach 17 | 2 . 3 1 . 2 3 6 Detach 4 | . . . . 1 . 2 1 Swap 3 | . . 2 1 . . . . Drop 9 | . 2 3 . 2 . 1 1 Fire 37 | . . . 6 . 13 17 1 Melee 51 | . . 33 . . . 4 14 Ram 1 | . . . . . . . 1 Kick . | . . . . . . . . Crush . | . . . . . . . . Escape Stasis 11 | . . . . . . . 11 Rewire . | . . . . . . . . Trap 1 | . . 1 . . . . . Miscellaneous . | . . . . . . . . Route ------- -11/Scrapyard -10/Materials (discovered 2 exits: *Min x2) -10/Mines (discovered 3 exits: *Mat x2 / *Sub) -10/Subcaves -9/Recycling -7/Factory -7/Waste -7/Factory History --------- Turn | Location | Event 19 | -11/Scrapyard | Discovered new exit (range 15) 47 | -11/Scrapyard | Entered Materials 68 | -10/Materials | Identified exit to Mines 168 | -10/Materials | Entered Mines 233 | -10/Mines | Found a hidden stash of uninstalled traps 322 | -10/Mines | Build established: Mutant 403 | -10/Mines | Learned location of Zion (-7) 434 | -10/Mines | Learned location of Storage (-9) 555 | -10/Mines | Discovered new exit (range 6) 566 | -10/Mines | Identified exit to Subcaves 644 | -10/Mines | Lost 3 parts (1p2n) 812 | -10/Mines | Discovered new exit (range 15) 835 | -10/Mines | Identified exit to Materials 960 | -10/Mines | Discovered exit to Materials (range 10) 1065 | -10/Mines | Entered Subcaves 1378 | -10/Subcaves | Core integrity fell below 50% 1396 | -10/Subcaves | Learned location of 1 exit from Materials 1462 | -10/Subcaves | Discovered new exit (range 13) 1484 | -10/Subcaves | Identified exit to Recycling 1485 | -10/Subcaves | Entered Recycling 1999 | -9/Recycling | Discovered new exit (range 13) 2016 | -9/Recycling | Identified exit to Factory 2018 | -9/Recycling | Entered Factory 2018 | -7/Factory | Evolved 6 slots: Power x1, Propulsion x2, Utility x2, Weapon x1 2093 | -7/Factory | Garrison activated, responded to threat 2110 | -7/Factory | Sucked down chute 2110 | -7/Factory | Entered Waste 2111 | -7/Waste | Met a frightened Derelict 2118 | -7/Waste | Spotted C-40 Crusher 2125 | -7/Waste | EMP discharged 2125 | -7/Waste | System corruption reached 10% 2155 | -7/Waste | Crushed by Compactor (1 part destroyed, 2 dropped) 2161 | -7/Waste | Crushed by Compactor (1 part destroyed, 1 dropped) 2162 | -7/Waste | Destroyed C-40 Crusher 2176 | -7/Waste | Spotted C-40 Crusher 2182 | -7/Waste | Found Damper Plating 2192 | -7/Waste | Lost 3 parts (1p1u1w) 2200 | -7/Waste | Spotted C-40 Crusher 2225 | -7/Waste | EMP discharged 2240 | -7/Waste | Spotted C-40 Crusher 2263 | -7/Waste | Spotted C-40 Crusher 2289 | -7/Waste | Discovered new exit (range 16) 2291 | -7/Waste | Spotted C-40 Crusher 2313 | -7/Waste | Entered Factory 2503 | -7/Factory | Core integrity fell below 50% 2524 | -7/Factory | Released all parts (4) 2533 | -7/Factory | Lost 5 parts (1p1n2u1w) 2573 | -7/Factory | Core integrity fell below 20% 2797 | -7/Factory | Destroyed by P-60 Hacker with Shock Rifle Last Messages --------------- EIYUGHIE8X=#AN%H#FR|VDG<2BB K-01 Serf collects debris. U-05 Engineer builds a Wall. Lyr. Light Armor Plating destroyed. System corrupted: Energy discharge (-22). Triggered Blade Trap. Massive razor-sharp blades shoot up from within the floor. Lyr. Light Armor Plating severed. Hpw. Shotgun destroyed. System corrupted: Matter fused (-7). Com. Wheel destroyed. Map ----- +----------------------------------------------------+ | ?????????????????????????????????????????????????? | | ?????????????????????????????????????????????????? | | ?????????????????????????????????????????????????? | | ?????????????????????????????????????????????????? | | ?????????????????????????????????????????????????? | | ?????????????????????????????????????????????????? | | ?????????????????????????????????????????????????? | | ?????????????????????????????????????????????????? | | ?????????????????????????????????????????????????? | | ?????????????????????????????????????????????????? | | ?????????????????????????????????????????????????? | | ?????????????????????????????????????????????????? | | ?????????????????????????????????????????????????? | | ?????????????????????????????????????????????????? | | ?????????????????????????????????????????????????? | | ?????????????????????????????????????????????????? | | ?????????????????????????????????????????????????? | | ?????????????????????????????????????????????????? | | ??#??????????????????????????????????????????????? | | ??# ?????????????????????????????????????????????? | | ??# ?????????????????????????????????????????????? | | ??# ?????????????????????????????????????????????? | | ??# ?????????????????????????????????????????????? | | ??# ?????????????????????????????????????????????? | | ??# #######+###############/##???????????????????? | | ??# @ p #???????????????????? | | ??# #???????????????????? | | ??# p #???????????????????? | | ??# ##+###############+##???????????????????? | | ??# # ????????????????????????????????????? | | ??# # ????????????????????????????????????? | | ??# # ???????????????????????????????????? | | ??# # ???????????????????????????????????? | | ### # ! ??????????????????????????????????? | | # ??????????????????????????????????? | | # ?????????????????????????????????? | | # ?????????????????????????????????? | | # ????????????????????????????????? | | # ????????????????????????????????? | | # ###### ???????????????????????????????? | | # #????? ???????????????????????????????? | | #! #######################+#+#??????????????????? | | + #??????????????????? | | # ########### ########### #??????????????????? | | # #?????????# # = ## #??????????????????? | | # #?????????# # """ ## #??????????????????? | | # #?????????# # """ ## #??????????????????? | | # #?????????# # """ ## #??????????????????? | | # #?????????# # ## #??????????????????? | | # #?????????# # #??????????????????? | +----------------------------------------------------+ Best States ------------- Heat Dissipation 61 Energy Generation 26 Energy Capacity 350 Matter Stores 300 Matter Capacity 300 Sight Range 16 Robot Scan Range 15 Terrain Scan Density 10 ECM Strength 1 Armor Coverage 1600 Resistance: EM 90 Evasion (%) 50 Recoil Reduction 2 Item Schematics ----------------- None Robot Schematics ------------------ None Fabricated ------------ Nothing Repaired ---------- Nothing Alien Tech Used ----------------- None Achievements -------------- None Challenges ------------ None Game ------ Seed GravjetNovaProtomatter Manual? 0 Play Time 00:30:35 Cumulative 49.3 hours Start 2025.07.09 @ 18:03:03 End 2025.07.09 @ 18:42:25 Sessions 1 Manual Loads 0 Difficulty Rogue Special Mode None Game No. 40 Rogue 37 Adventurer 1 Explorer 2 Win Type - Total 0 Types 0/0/0/0/0/0/0/0/0/0 Lore% 19 Gallery% 32 Achievement% 27 Wizard Run 0 Options --------- Layout 0 ASCII 0 Keyboard 0 Movement Mouse Keybinds 0 Fullscreen 2 Font 24/Smallcaps Map View 76x50 Zoom Use 0% Tactical HUD 0 Map Filters NONE Filters NONE Steam 1 RUN: 9dc3a387-966f-429f-bd0c-225b19c12590